[Event "22nd ETCC Women 2019"]
[Site "Batumi"]
[Date "2019.10.24"]
[Round "1.14"]
[White "Ghukasyan, Siranush"]
[Black "Puuska, Heini"]
[Result "1-0"]
[ECO "B12"]
[WhiteElo "2261"]
[BlackElo "1992"]
[Annotator "NA"]
[PlyCount "79"]
[EventDate "2019.10.24"]
[EventType "team-tourn"]
[EventCountry "GEO"]
[SourceTitle "playchess.com"]
[Source "ChessBase"]
[SourceQuality "1"]
[WhiteTeam "Armenia"]
[BlackTeam "Finland"]
[WhiteTeamCountry "ARM"]
[BlackTeamCountry "FIN"]
[TimeControl "40/5400+30:1800+30"]

1. e4 {[%emt 0:00:00]} c6 {[%emt 0:00:00]} 2. d4 {[%emt 0:00:00]} d5 {[%emt 0:00:00]} 3. e5 {[%emt 0:00:00]} c5 {[%emt 0:00:38]} 4. dxc5 {[%emt 0:00:23]} e6 {[%emt 0:00:22]} 5. Nf3 {[%emt 0:01:31]} Bxc5 {[%emt 0:01:49]} 6. Bd3 {[%emt 0:00:15]} Ne7 {[%emt 0:01:37]} 7. O-O {[%emt 0:00:07]} Ng6 {[%emt 0:00:56]} 8. Re1 {[%emt 0:03:08]} O-O {[%emt 0:01:30]} 9. h4 {[%emt 0:04:08]} h6 {[%emt 0:07:03]} 10. h5 {[%emt 0:00:54]} Nh4 {[%emt 0:03:37]} 11. Nbd2 {[%emt 0:05:27]} Nc6 {[%emt 0:02:29]} 12. c3 {[%emt 0:00:41]} Bd7 {[%emt 0:04:51]} 13. Bc2 {[%emt 0:02:43]} f5 {[%emt 0:06:23]} 14. g3 {[%emt 0:12:06]} Nxf3+ {[%emt 0:02:56]} 15. Nxf3 {[%emt 0:00:07]} Be7 {[%emt 0:05:10]} 16. Kg2 {[%emt 0:13:17]} Be8 {[%emt 0:04:57]} 17. Rh1 {[%emt 0:01:09]} Rc8 {[%emt 0:06:12]} 18. Bf4 {[%emt 0:09:35]} Bf7 {[%emt 0:05:52]} 19. Qd3 {[%emt 0:04:40]} d4 {[%emt 0:13:05]} 20. Nxd4 {[%emt 0:07:59]} Nxd4 {[%emt 0:02:52]} 21. cxd4 {[%emt 0:00:07]} Qd5+ {[%emt 0:00:31]} 22. f3 {[%emt 0:00:56]} Rfd8 {[%emt 0:02:32]} 23. Be3 {[%emt 0:03:35]} Bg5 {[%emt 0:05:53]} 24. Bb3 {[%emt 0:02:59]} Qd7 {[%emt 0:00:23]} 25. Bxg5 {[%emt 0:03:57]} hxg5 {[%emt 0:00:11]} 26. Rad1 {[%emt 0:02:07]} g4 {[%emt 0:07:10]} 27. fxg4 {[%emt 0:06:07]} fxg4 {[%emt 0:00:14]} 28. h6 {[%emt 0:04:55]} Qc6+ {[%emt 0:04:07]} 29. Kg1 {[%emt 0:00:05]} g6 {[%emt 0:05:25]} 30. Qf1 {[%emt 0:01:55]} Qf3 {[%emt 0:01:01]} 31. Qxf3 {[%emt 0:00:21]} gxf3 {[%emt 0:00:01]} 32. Kf2 {[%emt 0:00:34]} Kh7 {[%emt 0:00:20]} 33. Kxf3 {[%emt 0:00:34]} g5 {[%emt 0:01:08]} 34. Ke3 {[%emt 0:00:26]} b5 {[%emt 0:02:20]} 35. Rdf1 {[%emt 0:02:55]} Rd7 {[%emt 0:02:15]} 36. Rxf7+ {[%emt 0:00:41]} Rxf7 {[%emt 0:00:22]} 37. Bxe6 {[%emt 0:00:07]} Rcf8 {[%emt 0:00:45]} 38. Bxf7 {[%emt 0:00:09]} Rxf7 {[%emt 0:00:02]} 39. e6 {[%emt 0:00:10]} Rf6 {[%emt 0:00:59]} 40. d5 {[%emt 0:00:00]} 1-0

[Event "22nd ETCC Women 2019"]
[Site "Batumi"]
[Date "2019.10.24"]
[Round "1.14"]
[White "Pavlidou, Ekaterini"]
[Black "Zawadzka, Jolanta"]
[Result "0-1"]
[ECO "A06"]
[WhiteElo "2183"]
[BlackElo "2406"]
[Annotator "NA"]
[PlyCount "52"]
[EventDate "2019.10.24"]
[EventType "team-tourn"]
[EventCountry "GEO"]
[SourceTitle "playchess.com"]
[Source "ChessBase"]
[SourceQuality "1"]
[WhiteTeam "Greece"]
[BlackTeam "Poland"]
[WhiteTeamCountry "GRE"]
[BlackTeamCountry "POL"]
[TimeControl "40/5400+30:1800+30"]

1. Nf3 {[%emt 0:00:00]} d5 {[%emt 0:00:00]} 2. e3 {[%emt 0:00:09]} Nf6 {[%emt 0:01:25]} 3. c4 {[%emt 0:00:31]} e6 {[%emt 0:00:43]} 4. Nc3 {[%emt 0:00:30]} a6 {[%emt 0:06:39]} 5. b3 {[%emt 0:07:44]} c5 {[%emt 0:05:07]} 6. cxd5 {[%emt 0:03:48]} exd5 {[%emt 0:02:45]} 7. d4 {[%emt 0:00:53]} Nc6 {[%emt 0:01:19]} 8. Be2 {[%emt 0:03:13]} cxd4 {[%emt 0:05:25]} 9. exd4 {[%emt 0:06:40]} Ne4 {[%emt 0:09:00]} 10. Bd2 {[%emt 0:18:21]} Bb4 {[%emt 0:04:02]} 11. Rc1 {[%emt 0:04:53]} Ba3 {[%emt 0:04:44]} 12. Rc2 {[%emt 0:05:25]} Nb4 {[%emt 0:13:58]} 13. Nxe4 {[%emt 0:01:41]} dxe4 {[%emt 0:00:15]} 14. Bxb4 {[%emt 0:01:21]} Bxb4+ {[%emt 0:00:13]} 15. Nd2 {[%emt 0:00:07]} O-O {[%emt 0:07:07]} 16. Rc4 {[%emt 0:15:00]} Qe7 {[%emt 0:02:36]} 17. O-O {[%emt 0:06:41]} Bd6 {[%emt 0:08:18]} 18. d5 {[%emt 0:06:27]} f5 {[%emt 0:01:50]} 19. Re1 {[%emt 0:06:38]} b5 {[%emt 0:02:31]} 20. Rc6 {[%emt 0:02:55]} Bb7 {[%emt 0:00:46]} 21. Rb6 {[%emt 0:02:58]} Rf6 {[%emt 0:05:48]} 22. Rxd6 {[%emt 0:03:51]} Rxd6 {[%emt 0:00:59]} 23. a4 {[%emt 0:00:08]} Rxd5 {[%emt 0:00:49]} 24. axb5 {[%emt 0:00:04]} axb5 {[%emt 0:00:16]} 25. Qc2 {[%emt 0:00:54]} Rc8 {[%emt 0:02:00]} 26. Qa2 {[%emt 0:01:23]} Qb4 {[%emt 0:00:21]} 0-1

[Event "22nd ETCC Women 2019"]
[Site "Batumi"]
[Date "2019.10.24"]
[Round "1.15"]
[White "Cyfka, Karina"]
[Black "Makropoulou, Marina"]
[Result "1/2-1/2"]
[ECO "E11"]
[WhiteElo "2412"]
[BlackElo "2201"]
[Annotator "NA RC"]
[PlyCount "158"]
[EventDate "2019.10.24"]
[EventType "team-tourn"]
[EventCountry "GEO"]
[SourceTitle "playchess.com"]
[Source "ChessBase"]
[SourceQuality "1"]
[WhiteTeam "Poland"]
[BlackTeam "Greece"]
[WhiteTeamCountry "POL"]
[BlackTeamCountry "GRE"]
[TimeControl "40/5400+30:1800+30"]

1. d4 {[%emt 0:00:00]} Nf6 {[%emt 0:00:00]} 2. c4 {[%emt 0:00:00]} e6 {[%emt 0:00:00]} 3. Nf3 {[%emt 0:00:05]} Bb4+ {[%emt 0:00:46]} 4. Bd2 {[%emt 0:00:10]} a5 {[%emt 0:00:30]} 5. Nc3 {[%emt 0:01:37]} b6 {[%emt 0:03:17]} 6. e3 {[%emt 0:00:54]} Bb7 {[%emt 0:02:49]} 7. Bd3 {[%emt 0:01:18]} O-O {[%emt 0:00:39]} 8. O-O {[%emt 0:00:47]} d6 {[%emt 0:01:05]} 9. Qe2 {[%emt 0:00:37]} Bxc3 {[%emt 0:06:03]} 10. Bxc3 {[%emt 0:00:13]} Ne4 {[%emt 0:00:31]} 11. Be1 {[%emt 0:00:15]} Nd7 {[%emt 0:00:57]} 12. Nd2 {[%emt 0:00:33]} f5 {[%emt 0:04:09]} 13. f3 {[%emt 0:04:27]} Nxd2 {[%emt 0:00:45]} 14. Bxd2 {[%emt 0:02:09]} e5 {[%emt 0:01:06]} 15. d5 {[%emt 0:06:07]} Qe7 {[%emt 0:03:31]} 16. Bc3 {[%emt 0:07:35]} Rae8 {[%emt 0:14:15]} 17. Bc2 {[%emt 0:04:36]} Bc8 {[%emt 0:02:04]} 18. a3 {[%emt 0:03:27]} Qh4 {[%emt 0:11:33]} 19. b4 {[%emt 0:06:43]} Ba6 {[%emt 0:04:20]} 20. Bb3 {[%emt 0:02:51]} f4 {[%emt 0:03:56]} 21. Rae1 {[%emt 0:12:22]} Nf6 {[%emt 0:09:30]} 22. Qf2 {[%emt 0:04:34]} Qxf2+ {[%emt 0:06:08]} 23. Rxf2 {[%emt 0:01:01]} fxe3 {[%emt 0:00:33]} 24. Rxe3 {[%emt 0:00:56]} axb4 {[%emt 0:01:04]} 25. axb4 {[%emt 0:01:57]} Ra8 {[%emt 0:00:12]} 26. Rd2 {[%emt 0:03:44]} g5 {[%emt 0:01:02]} 27. Rd1 {[%emt 0:04:31]} b5 {[%emt 0:02:28]} 28. c5 {[%emt 0:02:22]} Bc8 {[%emt 0:01:07]} 29. Bb2 {[%emt 0:05:39]} Kg7 {[%emt 0:08:09]} 30. Ree1 {[%emt 0:03:43]} Bf5 {[%emt 0:05:49]} 31. g3 {[%emt 0:08:22]} Rfe8 {[%emt 0:00:57]} 32. Rc1 {[%emt 0:01:30]} Ra7 {[%emt 0:02:53]} 33. Re3 {[%emt 0:04:57]} Bg6 {[%emt 0:01:29]} 34. cxd6 {[%emt 0:02:28]} cxd6 {[%emt 0:00:02]} 35. Rc6 {[%emt 0:00:15]} Rd8 {[%emt 0:00:27]} 36. f4 {[%emt 0:01:14]} gxf4 {[%emt 0:01:43]} 37. gxf4 {[%emt 0:00:04]} e4 {[%emt 0:00:30]} 38. Rb6 {[%emt 0:01:27]} Kf7 {[%emt 0:02:04]} 39. Rxb5 {[%emt 0:00:38]} Bf5 {[%emt 0:00:24]} 40. Rb6 {[%emt 0:00:00]} Nh5 {[%emt 0:00:00]} 41. Kf1 {[%emt 0:13:41]} Nxf4 {[%emt 0:02:12]} 42. Rg3 {[%emt 0:00:36]} Bh3+ {[%emt 0:10:46]} 43. Kf2 {[%emt 0:06:23]} Nd3+ {[%emt 0:00:07]} 44. Ke3 {[%emt 0:00:09]} Nxb2 {[%emt 0:00:11]} 45. Rxh3 {[%emt 0:00:05]} Nc4+ {[%emt 0:10:53]} 46. Kd4 {[%emt 0:00:33]} Nxb6 {[%emt 0:00:19]} 47. Rxh7+ {[%emt 0:00:04]} Kf6 {[%emt 0:00:27]} 48. Rxa7 {[%emt 0:00:06]} e3 {[%emt 0:01:39]} 49. Kxe3 {[%emt 0:05:29]} Rh8 {[%emt 0:00:08]} 50. Rb7 {[%emt 0:05:34]} Rh3+ {[%emt 0:01:00]} 51. Kd4 {[%emt 0:00:27]} Rh4+ {[%emt 0:00:16]} 52. Kc3 {[%emt 0:00:09]} Rh3+ {[%emt 0:00:05]} 53. Kb2 {[%emt 0:00:11]} Rxh2+ {[%emt 0:00:06]} 54. Ka3 {[%emt 0:00:02]} Nc8 {[%emt 0:00:47]} 55. Ka4 {[%emt 0:02:57]} Ne7 {[%emt 0:01:46]} 56. Rd7 {[%emt 0:03:08]} Nf5 {[%emt 0:00:30]} 57. Ka5 {[%emt 0:01:34]} Ke5 {[%emt 0:00:39]} 58. Rd8 {[%emt 0:00:55]} Rb2 {[%emt 0:02:26]} 59. Ka4 {[%emt 0:00:33]} Nd4 {[%emt 0:02:33]} 60. Re8+ {[%emt 0:00:17]} Kf4 {[%emt 0:00:31]} 61. Bc4 {[%emt 0:00:34]} Rc2 {[%emt 0:00:18]} 62. Rc8 {[%emt 0:00:20]} Rb2 {[%emt 0:03:29]} 63. Ka5 {[%emt 0:00:41]} Nf5 {[%emt 0:00:38]} 64. b5 {[%emt 0:00:39]} Ke5 {[%emt 0:00:20]} 65. b6 {[%emt 0:00:23]} Kd4 {[%emt 0:00:13]} 66. Ka6 {[%emt 0:00:23]} Ne3 {[%emt 0:00:11]} 67. Bb5 {[%emt 0:00:38]} Ra2+ {[%emt 0:00:10]} 68. Kb7 {[%emt 0:00:12]} Nxd5 {[%emt 0:00:25]} 69. Rc4+ {[%emt 0:00:58]} Ke5 {[%emt 0:00:09]} 70. Bc6 {[%emt 0:00:27]} Rb2 {[%emt 0:01:52]} 71. Bxd5 {[%emt 0:00:14]} Kxd5 {[%emt 0:00:02]} 72. Rc6 {[%emt 0:00:53]} Ke5 {[%emt 0:00:08]} 73. Kc7 {[%emt 0:00:12]} d5 {[%emt 0:00:17]} 74. Rc5 {[%emt 0:00:49]} Ke4 {[%emt 0:00:10]} 75. Kc6 {[%emt 0:00:06]} d4 {[%emt 0:00:47]} 76. Rb5 {[%emt 0:00:50]} Rxb5 {[%emt 0:01:08]} 77. Kxb5 {[%emt 0:00:03]} d3 {[%emt 0:00:03]} 78. b7 {[%emt 0:00:04]} d2 {[%emt 0:00:03]} 79. b8=Q {[%emt 0:00:06]} d1=Q {[%emt 0:00:06]} 1/2-1/2

[Event "22nd ETCC Women 2019"]
[Site "Batumi"]
[Date "2019.10.24"]
[Round "1.15"]
[White "Dannenberg, Alia"]
[Black "Gevorgyan, Maria"]
[Result "0-1"]
[ECO "B35"]
[WhiteElo "1902"]
[BlackElo "2260"]
[Annotator "NA"]
[PlyCount "112"]
[EventDate "2019.10.24"]
[EventType "team-tourn"]
[EventCountry "GEO"]
[SourceTitle "playchess.com"]
[Source "ChessBase"]
[SourceQuality "1"]
[WhiteTeam "Finland"]
[BlackTeam "Armenia"]
[WhiteTeamCountry "FIN"]
[BlackTeamCountry "ARM"]
[TimeControl "40/5400+30:1800+30"]

1. e4 {[%emt 0:00:00]} c5 {[%emt 0:00:00]} 2. Nf3 {[%emt 0:00:00]} Nc6 {[%emt 0:00:00]} 3. d4 {[%emt 0:00:00]} cxd4 {[%emt 0:00:00]} 4. Nxd4 {[%emt 0:00:00]} g6 {[%emt 0:00:00]} 5. Nc3 {[%emt 0:00:08]} Bg7 {[%emt 0:00:10]} 6. Be3 {[%emt 0:00:03]} Nf6 {[%emt 0:00:07]} 7. Bc4 {[%emt 0:01:53]} O-O {[%emt 0:00:06]} 8. Bb3 {[%emt 0:00:26]} Re8 {[%emt 0:00:46]} 9. f3 {[%emt 0:03:18]} e6 {[%emt 0:02:43]} 10. O-O {[%emt 0:02:24]} d5 {[%emt 0:02:40]} 11. exd5 {[%emt 0:03:08]} exd5 {[%emt 0:01:07]} 12. Bf2 {[%emt 0:00:52]} Be6 {[%emt 0:05:34]} 13. Qd2 {[%emt 0:05:02]} a6 {[%emt 0:07:39]} 14. Nce2 {[%emt 0:10:09]} h6 {[%emt 0:05:12]} 15. c3 {[%emt 0:12:13]} Na5 {[%emt 0:04:23]} 16. Rfe1 {[%emt 0:04:16]} Nc4 {[%emt 0:10:51]} 17. Qc2 {[%emt 0:04:18]} Bd7 {[%emt 0:03:23]} 18. Nf4 {[%emt 0:05:23]} Qc7 {[%emt 0:00:52]} 19. Bg3 {[%emt 0:03:12]} Qc5 {[%emt 0:04:17]} 20. Bf2 {[%emt 0:02:56]} Qa5 {[%emt 0:02:55]} 21. Rad1 {[%emt 0:02:51]} g5 {[%emt 0:10:40]} 22. Nd3 {[%emt 0:07:46]} Rxe1+ {[%emt 0:15:20]} 23. Rxe1 {[%emt 0:01:02]} Re8 {[%emt 0:01:50]} 24. Rxe8+ {[%emt 0:00:56]} Nxe8 {[%emt 0:00:35]} 25. Qe2 {[%emt 0:04:36]} Kf8 {[%emt 0:06:36]} 26. Nb4 {[%emt 0:03:01]} Ned6 {[%emt 0:00:25]} 27. h3 {[%emt 0:09:07]} Bf6 {[%emt 0:00:42]} 28. g4 {[%emt 0:01:04]} Be5 {[%emt 0:01:50]} 29. Nd3 {[%emt 0:01:33]} f6 {[%emt 0:01:59]} 30. Bxc4 {[%emt 0:01:55]} dxc4 {[%emt 0:00:27]} 31. Nb4 {[%emt 0:03:12]} Qa4 {[%emt 0:01:53]} 32. Qc2 {[%emt 0:01:12]} Qxc2 {[%emt 0:01:35]} 33. Nbxc2 {[%emt 0:00:37]} h5 {[%emt 0:01:58]} 34. Kg2 {[%emt 0:01:46]} f5 {[%emt 0:03:12]} 35. Bg3 {[%emt 0:04:03]} f4 {[%emt 0:01:34]} 36. Bf2 {[%emt 0:00:02]} Ne8 {[%emt 0:01:03]} 37. Nb4 {[%emt 0:00:28]} Nf6 {[%emt 0:00:04]} 38. gxh5 {[%emt 0:02:09]} Kg7 {[%emt 0:01:36]} 39. Nbc2 {[%emt 0:00:40]} Kh6 {[%emt 0:00:41]} 40. h4 {[%emt 0:00:00]} g4 {[%emt 0:00:00]} 41. fxg4 {[%emt 0:06:23]} Nxg4 {[%emt 0:06:17]} 42. Be1 {[%emt 0:05:03]} Kxh5 {[%emt 0:01:01]} 43. Kf3 {[%emt 0:00:03]} Nf6 {[%emt 0:00:24]} 44. Bf2 {[%emt 0:04:04]} Bd6 {[%emt 0:06:42]} 45. Be1 {[%emt 0:02:20]} Bg4+ {[%emt 0:00:58]} 46. Kg2 {[%emt 0:01:31]} Bd1 {[%emt 0:01:50]} 47. Bf2 {[%emt 0:00:33]} Ne4 {[%emt 0:01:23]} 48. Ne1 {[%emt 0:03:51]} Bc5 {[%emt 0:11:04]} 49. Bg1 {[%emt 0:06:14]} Kxh4 {[%emt 0:01:25]} 50. Nf5+ {[%emt 0:04:20]} Kg4 {[%emt 0:00:42]} 51. Bxc5 {[%emt 0:02:22]} Nxc5 {[%emt 0:00:31]} 52. Nd6 {[%emt 0:00:51]} b5 {[%emt 0:00:09]} 53. Kf2 {[%emt 0:00:31]} Na4 {[%emt 0:00:40]} 54. Nf7 {[%emt 0:00:38]} Nxb2 {[%emt 0:00:11]} 55. Ne5+ {[%emt 0:00:13]} Kf5 {[%emt 0:00:05]} 56. N5f3 {[%emt 0:00:39]} Na4 {[%emt 0:01:16]} 0-1

[Event "22nd ETCC Women 2019"]
[Site "Batumi"]
[Date "2019.10.24"]
[Round "1.16"]
[White "Sargsyan, Anna M."]
[Black "Norlamo, Sarabella"]
[Result "1-0"]
[ECO "E15"]
[WhiteElo "2242"]
[BlackElo "2020"]
[Annotator "NA"]
[PlyCount "119"]
[EventDate "2019.10.24"]
[EventType "team-tourn"]
[EventCountry "GEO"]
[SourceTitle "playchess.com"]
[Source "ChessBase"]
[SourceQuality "1"]
[WhiteTeam "Armenia"]
[BlackTeam "Finland"]
[WhiteTeamCountry "ARM"]
[BlackTeamCountry "FIN"]
[TimeControl "40/5400+30:1800+30"]

1. d4 {[%emt 0:00:00]} Nf6 {[%emt 0:00:00]} 2. c4 {[%emt 0:00:00]} e6 {[%emt 0:00:00]} 3. Nf3 {[%emt 0:00:00]} b6 {[%emt 0:00:15]} 4. g3 {[%emt 0:00:00]} Ba6 {[%emt 0:00:25]} 5. Qc2 {[%emt 0:00:00]} Bb4+ {[%emt 0:01:16]} 6. Bd2 {[%emt 0:00:08]} Be7 {[%emt 0:00:21]} 7. Bg2 {[%emt 0:00:26]} O-O {[%emt 0:05:34]} 8. O-O {[%emt 0:03:31]} d5 {[%emt 0:03:57]} 9. cxd5 {[%emt 0:03:16]} Bxe2 {[%emt 0:17:20]} 10. dxe6 {[%emt 0:00:49]} Bxf1 {[%emt 0:06:54]} 11. exf7+ {[%emt 0:00:15]} Kh8 {[%emt 0:00:18]} 12. Kxf1 {[%emt 0:04:12]} c6 {[%emt 0:10:21]} 13. Ng5 {[%emt 0:04:14]} Qc8 {[%emt 0:02:53]} 14. Bh3 {[%emt 0:00:13]} Nbd7 {[%emt 0:04:15]} 15. Nc3 {[%emt 0:01:05]} h6 {[%emt 0:06:31]} 16. Ne6 {[%emt 0:03:01]} Rxf7 {[%emt 0:00:29]} 17. Nf4 {[%emt 0:03:47]} Qa6+ {[%emt 0:05:58]} 18. Kg1 {[%emt 0:03:45]} Nf8 {[%emt 0:00:20]} 19. Qb3 {[%emt 0:01:38]} Kg8 {[%emt 0:02:04]} 20. Bf1 {[%emt 0:03:53]} b5 {[%emt 0:01:23]} 21. Nd3 {[%emt 0:02:53]} N8d7 {[%emt 0:01:58]} 22. Bh3 {[%emt 0:01:00]} b4 {[%emt 0:07:04]} 23. Nxb4 {[%emt 0:00:59]} Bxb4 {[%emt 0:01:13]} 24. Be6 {[%emt 0:00:11]} Raf8 {[%emt 0:04:03]} 25. Qxb4 {[%emt 0:03:18]} Kh7 {[%emt 0:01:45]} 26. Bxf7 {[%emt 0:02:35]} Rxf7 {[%emt 0:00:02]} 27. Qb3 {[%emt 0:00:49]} Rf8 {[%emt 0:01:30]} 28. Qc2+ {[%emt 0:00:28]} Kh8 {[%emt 0:03:53]} 29. Re1 {[%emt 0:00:55]} Qc4 {[%emt 0:01:30]} 30. Be3 {[%emt 0:05:24]} Ng4 {[%emt 0:04:45]} 31. Qa4 {[%emt 0:02:26]} Nxe3 {[%emt 0:01:45]} 32. Rxe3 {[%emt 0:00:11]} Qf7 {[%emt 0:02:49]} 33. Re2 {[%emt 0:00:13]} Nb8 {[%emt 0:01:36]} 34. Qa3 {[%emt 0:01:20]} Kg8 {[%emt 0:00:40]} 35. Qe7 {[%emt 0:01:35]} Na6 {[%emt 0:00:42]} 36. Qe6 {[%emt 0:01:12]} Nb4 {[%emt 0:00:44]} 37. Qxf7+ {[%emt 0:01:28]} Rxf7 {[%emt 0:00:02]} 38. a3 {[%emt 0:00:15]} Nd3 {[%emt 0:00:40]} 39. b4 {[%emt 0:01:59]} a5 {[%emt 0:01:13]} 40. bxa5 {[%emt 0:00:00]} Ra7 {[%emt 0:00:00]} 41. Re3 {[%emt 0:03:33]} Nc1 {[%emt 0:05:59]} 42. Re6 {[%emt 0:03:33]} Rxa5 {[%emt 0:03:17]} 43. a4 {[%emt 0:01:37]} Nb3 {[%emt 0:04:00]} 44. Rxc6 {[%emt 0:00:52]} Nxd4 {[%emt 0:00:17]} 45. Rd6 {[%emt 0:01:02]} Nb3 {[%emt 0:05:24]} 46. Rb6 {[%emt 0:03:05]} Nd4 {[%emt 0:02:09]} 47. Kg2 {[%emt 0:00:24]} Rc5 {[%emt 0:03:57]} 48. Nb5 {[%emt 0:01:18]} Nxb5 {[%emt 0:02:28]} 49. axb5 {[%emt 0:00:51]} Rc2 {[%emt 0:00:45]} 50. Rc6 {[%emt 0:00:05]} Rb2 {[%emt 0:00:16]} 51. b6 {[%emt 0:00:04]} Kh7 {[%emt 0:02:13]} 52. Kf3 {[%emt 0:00:04]} Rb3+ {[%emt 0:00:24]} 53. Ke4 {[%emt 0:00:39]} Rb2 {[%emt 0:01:29]} 54. Kd5 {[%emt 0:00:55]} Rxf2 {[%emt 0:00:55]} 55. Kc5 {[%emt 0:00:09]} Rb2 {[%emt 0:01:12]} 56. Kd6 {[%emt 0:00:27]} Rf2 {[%emt 0:02:23]} 57. b7 {[%emt 0:00:12]} Rf6+ {[%emt 0:00:29]} 58. Kd5 {[%emt 0:00:14]} Rf5+ {[%emt 0:00:14]} 59. Kc4 {[%emt 0:00:05]} Rf8 {[%emt 0:00:24]} 60. Rc8 {[%emt 0:00:07]} 1-0

[Event "22nd ETCC Women 2019"]
[Site "Batumi"]
[Date "2019.10.24"]
[Round "1.16"]
[White "Makka, Ioulia"]
[Black "Majdan, Joanna"]
[Result "1-0"]
[ECO "B92"]
[WhiteElo "2048"]
[BlackElo "2352"]
[Annotator "NA"]
[PlyCount "63"]
[EventDate "2019.10.24"]
[EventType "team-tourn"]
[EventCountry "GEO"]
[SourceTitle "playchess.com"]
[Source "ChessBase"]
[SourceQuality "1"]
[WhiteTeam "Greece"]
[BlackTeam "Poland"]
[WhiteTeamCountry "GRE"]
[BlackTeamCountry "POL"]
[TimeControl "40/5400+30:1800+30"]

1. e4 {[%emt 0:00:00]} c5 {[%emt 0:00:00]} 2. Nf3 {[%emt 0:00:00]} d6 {[%emt 0:00:00]} 3. d4 {[%emt 0:00:00]} cxd4 {[%emt 0:00:00]} 4. Nxd4 {[%emt 0:00:00]} Nf6 {[%emt 0:00:00]} 5. Nc3 {[%emt 0:00:00]} a6 {[%emt 0:00:00]} 6. Be2 {[%emt 0:00:11]} Nc6 {[%emt 0:01:45]} 7. O-O {[%emt 0:08:28]} e5 {[%emt 0:01:52]} 8. Nb3 {[%emt 0:03:31]} Be7 {[%emt 0:05:21]} 9. Kh1 {[%emt 0:06:11]} O-O {[%emt 0:03:07]} 10. a4 {[%emt 0:28:22]} Nb4 {[%emt 0:12:23]} 11. f4 {[%emt 0:06:36]} b6 {[%emt 0:08:53]} 12. Bf3 {[%emt 0:05:23]} Bb7 {[%emt 0:01:12]} 13. Rf2 {[%emt 0:10:07]} Qc7 {[%emt 0:01:31]} 14. Be3 {[%emt 0:06:35]} Rac8 {[%emt 0:10:39]} 15. Rd2 {[%emt 0:01:40]} Bc6 {[%emt 0:08:28]} 16. Qg1 {[%emt 0:02:31]} Rb8 {[%emt 0:02:08]} 17. g4 {[%emt 0:04:19]} d5 {[%emt 0:07:19]} 18. exd5 {[%emt 0:03:24]} exf4 {[%emt 0:00:27]} 19. dxc6 {[%emt 0:03:09]} fxe3 {[%emt 0:00:04]} 20. Qxe3 {[%emt 0:00:12]} h6 {[%emt 0:03:46]} 21. Nd4 {[%emt 0:02:08]} Bc5 {[%emt 0:07:27]} 22. g5 {[%emt 0:02:05]} Rfe8 {[%emt 0:04:23]} 23. Qg1 {[%emt 0:01:17]} hxg5 {[%emt 0:01:21]} 24. Qxg5 {[%emt 0:00:27]} Nh7 {[%emt 0:02:11]} 25. Qg2 {[%emt 0:00:49]} Rbd8 {[%emt 0:04:33]} 26. Nf5 {[%emt 0:01:39]} Qe5 {[%emt 0:03:02]} 27. Rxd8 {[%emt 0:01:02]} Rxd8 {[%emt 0:00:03]} 28. c7 {[%emt 0:02:52]} Re8 {[%emt 0:03:17]} 29. Be4 {[%emt 0:00:49]} Kh8 {[%emt 0:02:26]} 30. Rd1 {[%emt 0:00:23]} Be7 {[%emt 0:02:27]} 31. Nxe7 {[%emt 0:00:35]} Qxe7 {[%emt 0:00:18]} 32. Qh3 {[%emt 0:00:19]} 1-0

[Event "22nd ETCC Women 2019"]
[Site "Batumi"]
[Date "2019.10.24"]
[Round "1.17"]
[White "Peng, Zhaoqin"]
[Black "Goossens, Hanne"]
[Result "0-1"]
[ECO "A16"]
[WhiteElo "2364"]
[BlackElo "2156"]
[Annotator "NA"]
[PlyCount "86"]
[EventDate "2019.10.24"]
[EventType "team-tourn"]
[EventCountry "GEO"]
[SourceTitle "playchess.com"]
[Source "ChessBase"]
[SourceQuality "1"]
[WhiteTeam "Netherlands"]
[BlackTeam "Belgium"]
[WhiteTeamCountry "NED"]
[BlackTeamCountry "BEL"]
[TimeControl "40/5400+30:1800+30"]

1. c4 {[%emt 0:00:00]} Nf6 {[%emt 0:00:00]} 2. Nc3 {[%emt 0:00:22]} g6 {[%emt 0:00:00]} 3. e4 {[%emt 0:01:13]} d6 {[%emt 0:01:12]} 4. d4 {[%emt 0:00:16]} Bg7 {[%emt 0:00:20]} 5. Bd3 {[%emt 0:00:32]} O-O {[%emt 0:00:28]} 6. Nge2 {[%emt 0:00:11]} a6 {[%emt 0:00:49]} 7. O-O {[%emt 0:00:58]} Nbd7 {[%emt 0:00:23]} 8. Bc2 {[%emt 0:09:01]} c5 {[%emt 0:01:48]} 9. d5 {[%emt 0:00:16]} Ne5 {[%emt 0:00:59]} 10. b3 {[%emt 0:00:43]} b5 {[%emt 0:02:06]} 11. f4 {[%emt 0:08:36]} Ned7 {[%emt 0:03:21]} 12. Rb1 {[%emt 0:01:27]} Nb6 {[%emt 0:09:00]} 13. cxb5 {[%emt 0:07:20]} axb5 {[%emt 0:00:09]} 14. Nxb5 {[%emt 0:06:58]} Rxa2 {[%emt 0:04:40]} 15. Nec3 {[%emt 0:10:53]} Ra8 {[%emt 0:04:16]} 16. h3 {[%emt 0:02:02]} Ba6 {[%emt 0:02:43]} 17. Bd3 {[%emt 0:03:33]} Qd7 {[%emt 0:08:18]} 18. Re1 {[%emt 0:02:37]} e6 {[%emt 0:09:12]} 19. dxe6 {[%emt 0:17:57]} fxe6 {[%emt 0:01:31]} 20. Bf1 {[%emt 0:18:02]} d5 {[%emt 0:07:12]} 21. e5 {[%emt 0:01:09]} Nh5 {[%emt 0:02:33]} 22. Qg4 {[%emt 0:00:53]} d4 {[%emt 0:12:41]} 23. Na4 {[%emt 0:00:06]} Nxa4 {[%emt 0:02:45]} 24. bxa4 {[%emt 0:00:01]} d3 {[%emt 0:01:27]} 25. Be3 {[%emt 0:02:29]} c4 {[%emt 0:02:40]} 26. Rec1 {[%emt 0:01:10]} Rac8 {[%emt 0:10:06]} 27. Nc3 {[%emt 0:00:08]} Nxf4 {[%emt 0:02:28]} 28. Bxf4 {[%emt 0:01:43]} Qd4+ {[%emt 0:00:05]} 29. Kh1 {[%emt 0:00:17]} Qxf4 {[%emt 0:02:05]} 30. Qxe6+ {[%emt 0:01:39]} Kh8 {[%emt 0:00:37]} 31. Re1 {[%emt 0:02:04]} Ra8 {[%emt 0:04:25]} 32. Qd5 {[%emt 0:00:48]} Rae8 {[%emt 0:00:57]} 33. Re4 {[%emt 0:00:30]} Qg3 {[%emt 0:01:06]} 34. Qd4 {[%emt 0:00:33]} Rxe5 {[%emt 0:00:55]} 35. Rg4 {[%emt 0:00:32]} Qe3 {[%emt 0:01:01]} 36. Qxe3 {[%emt 0:00:27]} Rxe3 {[%emt 0:00:03]} 37. Nd5 {[%emt 0:00:04]} Re5 {[%emt 0:02:33]} 38. Nc7 {[%emt 0:00:06]} Bc8 {[%emt 0:01:17]} 39. Rxc4 {[%emt 0:00:08]} d2 {[%emt 0:00:08]} 40. Rd1 {[%emt 0:00:00]} Re1 {[%emt 0:00:00]} 41. Rxd2 {[%emt 0:02:11]} Rexf1+ {[%emt 0:02:54]} 42. Kh2 {[%emt 0:00:08]} Be5+ {[%emt 0:00:11]} 43. g3 {[%emt 0:00:10]} Bb7 {[%emt 0:00:30]} 0-1